fUSD/lending_fUSD_20240127
["ID","MTS","AMOUNT","RATE_DAILY","PERIOD"]
[312859229,1706371833266,-244.67,0.00034181,2]
[312859230,1706371833275,-1193.13,0.00034378,2]
[312859231,1706371833284,-959.6,0.00034418,2]
[312859232,1706371833294,-1655.59,0.00034666,2]
[312859233,1706371833303,-168.52,0.000348,2]
[312859234,1706371833313,-800.0,0.00035,3]
[312859235,1706371833323,-155.41728124,0.00035,2]
[312859236,1706371833332,-1193.13,0.00035523,2]
[312859237,1706371833340,-434.0,0.0003554,2]
[312859238,1706371833350,-157.74,0.00035603,2]
[312859239,1706371833359,-821.71,0.00035709,2]
[312859240,1706371833369,-205.0,0.0003578,16]
[312859241,1706371833378,-4153.91,0.00035887,2]
[312859242,1706371833387,-4782.38701452,0.00036,30]
[312859243,1706371833401,-529.8845438,0.00036,30]
[312859244,1706371833412,-361.53176786,0.00036,30]
[312859245,1706371833424,-696.2612432,0.00036,30]
[312859246,1706371833433,-25.36400943,0.00036005,2]
[312859247,1706371833446,-298.78588235,0.00036005,2]
[312859248,1706371833455,-104.57557554,0.0003631,2]
[312859249,1706371833467,-890.07115902,0.0003631,2]
[312859250,1706371833478,-660.94326544,0.0003631,2]
[312859251,1706371833489,-622.17405158,0.0003638,2]
[312859252,1706371833498,-158.68,0.00036438,2]
[312859253,1706371833507,-13.17361724,0.00036613,15]
[312859254,1706371833519,-207.82638276,0.00036613,15]
[312859255,1706371833529,-137.49638266,0.0003676,4]
[312859256,1706371833542,-551.97811473,0.0003676,4]
[312859257,1706371833551,-3219.43265722,0.00036889,15]
[312859258,1706371833561,-163.26471628,0.000369,2]
[312859259,1706371833570,-175.3,0.00036914,2]
[312859260,1706371833579,-150.0,0.00037,30]
[312859261,1706371833588,-850.0,0.00037,3]
[312859262,1706371833597,-281.73106751,0.000371,8]
[312859263,1706371833609,-471.72084808,0.000371,8]
[312859264,1706371833619,-151.08297639,0.000371,8]
[312859265,1706371833629,-150.0,0.000372,30]
[312859266,1706371833638,-150.0,0.000374,30]
[312859267,1706371833648,-5000.0,0.00037518,4]
[312859268,1706371833657,-27.92397444,0.0003752,4]
[312859269,1706371833673,-220.07533537,0.0003752,4]
[312859270,1706371833683,-286.37391764,0.0003752,4]
[312859271,1706371833692,-179.0129,0.0003752,2]
[312859272,1706371833702,-150.0,0.00037587,2]
[312859273,1706371833711,-150.0,0.000376,30]
[312859274,1706371833720,-157.74,0.00037638,2]
[312859275,1706371833730,-154.45899141,0.00037799,2]
[312859276,1706371833739,-477.38255323,0.00037799,11]
[312859277,1706371833755,-3225.06261347,0.00037799,11]
[312859278,1706371833765,-528.49105934,0.00037799,2]
[312859279,1706371833774,-175.74926153,0.00037799,2]
[312859280,1706371833784,-523.8010228,0.00037799,2]
[312859281,1706371833793,-150.0,0.000378,30]
[312859282,1706371833803,-522.25464851,0.00037854,2]
[312859283,1706371833815,-578.10578071,0.00037854,2]
[312859284,1706371833826,-188.6185015,0.00037854,2]
[312859285,1706371833835,-184.67736102,0.00037854,2]
[312859286,1706371833845,-101.37301168,0.00037854,2]
[312859287,1706371833857,-53.17615941,0.00037854,2]
[312859288,1706371833866,-923.46428468,0.00037854,2]
[312859289,1706371833875,-198.58536634,0.00037854,2]
[312859290,1706371833884,-255.44734739,0.00037873,2]
[312859291,1706371833896,-267.5,0.00037873,2]
[312859292,1706371833910,-695.69402603,0.00037873,2]
[312859293,1706371833922,-194.61862658,0.00037873,2]
[312859294,1706371833931,-159.08,0.00037888,2]
[312859295,1706371833940,-159.08,0.00037888,2]
[312859296,1706371833950,-159.08,0.00037888,2]
[312859297,1706371833959,-128.2926376,0.00037888,2]
[312859298,1706371833971,-30.7873624,0.00037888,2]
[312859299,1706371833983,-159.08,0.0003789,2]
[312859300,1706371833992,-114.73810349,0.0003789,2]
[312859301,1706371838110,-44.34189651,0.0003789,2]
[312859302,1706371838120,-166.45514692,0.00037895,2]
[312859303,1706371838130,-203.43210543,0.00037896,4]
[312859304,1706371838139,-3851.74451044,0.00037896,4]
[312859305,1706371838148,-543.77994778,0.00037896,4]
[312859306,1706371838157,-876.01578738,0.00037897,4]
[312859307,1706371838167,-934.50089976,0.00037897,2]
[312859308,1706371838176,-303.74458375,0.00037897,4]
[312859309,1706371838186,-416.53732539,0.00037897,4]
[312859310,1706371838195,-313.52241438,0.00037897,30]
[312859311,1706371838204,-155.0,0.00037898,4]
[312859312,1706371838213,-1061.48385523,0.00037898,4]
[312859313,1706371838222,-85485.81958645,0.00037898,2]
[312859314,1706371838234,-54263.66119503,0.00037898,2]
[312859315,1706371838245,-74069.35183605,0.00037898,2]
[312859316,1706371838256,-199644.47500312,0.00037898,2]
[312859317,1706371838267,-104260.91840062,0.00037898,2]
[312859318,1706371838279,-39652.62208967,0.00037898,2]
[312859319,1706371838290,-35937.32001096,0.00037898,2]
[312859320,1706371838305,-739.30814126,0.00037898,2]
[312859321,1706371838317,-431.95013453,0.00037898,2]
[312859322,1706371838328,-1882.94251347,0.00037898,2]
[312859323,1706371838339,-2458.79018373,0.00037898,2]
[312859324,1706371838350,-99987.3310969,0.00037898,2]
[312859325,1706371838362,-1097.0,0.00037898,2]
[312859326,1706371838377,-20456.87596892,0.00037898,2]
[312859327,1706371838389,-808.75030777,0.00037898,2]
[312859329,1706371838400,-741.27723955,0.00037898,2]
[312859330,1706371838411,-420.8888349,0.00037898,2]
[312859331,1706371838426,-3730.76146981,0.00037898,2]
[312859332,1706371838437,-1246.18216682,0.00037898,2]
[312859333,1706371838449,-294.08548322,0.00037898,2]
[312859334,1706371838461,-5820.1921869,0.00037898,2]
[312859335,1706371838472,-5120.5,0.00037898,2]
[312859539,1706371840640,-892.45022687,0.00037898,2]
[312859546,1706371840696,-288.179,0.00037898,2]
[312859548,1706371840708,-1764.55671943,0.00037898,2]
[312859554,1706371840753,-17870.68348604,0.00037898,2]
[312859625,1706371841501,-17211.93749484,0.00037898,2]
[312859626,1706371841611,-0.04193987,0.00037898,2]
[312859628,1706371841624,-23033.65307834,0.00037898,2]
[312859629,1706371841637,-1000.0,0.00037898,2]
[312859670,1706371843382,-500.0,0.00037888,10]
[312859673,1706371843438,-1271.53918342,0.00037888,10]
[312859674,1706371843451,-1259.88081658,0.00037888,10]
[312859675,1706371843460,-6278.32830952,0.00037898,2]
[312859676,1706371843548,-722.81067759,0.00037898,2]
[312859677,1706371843603,-5311.71237355,0.00037898,2]
[312859678,1706371843615,-858.21016671,0.00037898,2]
[312859699,1706371846191,-155.0,0.0003,2]
[312859700,1706371846203,-1547.20881862,0.00037897,4]
[312859701,1706371846302,-508.705,0.00037897,4]
[312859702,1706371846314,-4261.87321074,0.00037897,4]
[312859704,1706371846690,-142.63315115,0.0003638,4]
[312859705,1706371846701,-278.06300269,0.0003638,4]
[312859706,1706371846710,-1921.53289329,0.00037897,4]
[312859707,1706371846732,-17475.4706824,0.00037897,4]
[312859708,1706371846741,-95138.02722916,0.00037898,2]
[312859709,1706371846751,-320.01651652,0.00037899,4]
[312859710,1706371846761,-300.19258432,0.00037899,4]
[312859711,1706371846770,-809.440986,0.00037899,4]
[312859712,1706371846779,-3425.51805328,0.000379,5]
[312859713,1706371846788,-500.0,0.000379,2]
[312859714,1706371846797,-685.14355614,0.000379,4]
[312859715,1706371846806,-1294.5657766,0.000379,5]
[312859716,1706371846815,-324555.14958056,0.000379,3]
[312859742,1706372968103,-530.28990849,0.00023668,2]
[312859743,1706372968122,-1229.16023377,0.00023668,2]
[312859744,1706372968143,-802.01098262,0.00023668,2]
[312859752,1706373032320,-1815.13226475,0.00023663,2]
[312859753,1706373032329,-371.8763272,0.00023663,2]
[312859754,1706373032338,-580.85669802,0.00023664,2]
[312859755,1706373032347,-184.1580937,0.00023665,2]
[312859756,1706373032359,-126.56361901,0.00023665,2]
[312859757,1706373032369,-197.11131551,0.00023665,2]
[312859758,1706373032378,-387.70066917,0.00023666,2]
[312859759,1706373032388,-155.0,0.00023667,2]
[312859760,1706373032397,-543.40593389,0.00023667,2]
[312859761,1706373032408,-662.41072572,0.00023667,2]
[312859762,1706373032418,-3471.13715984,0.00023668,2]
[312859763,1706373032430,-222.69691004,0.00023668,2]
[312859764,1706373032440,-150.0,0.00023668,2]
[312859765,1706373032449,-205.0,0.00023686,2]
[312859766,1706373032459,-550.0,0.00025,3]
[312859767,1706373032468,-2447.97464345,0.00025024,2]
[312859768,1706373032478,-600.0,0.00027,3]
[312859769,1706373032487,-279.91,0.00028,2]
[312859770,1706373032496,-650.0,0.00029,3]
[312859771,1706373032505,-205.0,0.00029738,11]
[312859772,1706373032514,-447.12778796,0.0003,4]
[312859773,1706373032523,-155.0,0.0003,2]
[312859774,1706373032533,-700.0,0.00031,3]
[312859775,1706373032542,-159.94,0.000324,2]
[312859776,1706373032551,-750.0,0.00033,3]
[312859777,1706373032561,-569.23,0.000335,2]
[312859778,1706373032570,-569.23,0.000335,2]
[312859779,1706373032579,-569.23,0.000335,2]
[312859780,1706373032589,-569.23,0.000335,2]
[312859781,1706373032598,-569.23,0.000335,2]
[312859782,1706373032607,-569.23,0.000335,2]
[312859783,1706373032620,-40.9706585,0.000335,2]
[312859784,1706373032632,-528.2593415,0.000335,2]
[312859785,1706373032642,-15.03794038,0.000335,2]
[312859786,1706373032810,-480.00571192,0.000335,2]
[312859787,1706373032865,-74.1863477,0.000335,2]
[312859788,1706373032874,-569.23,0.000335,2]
[312859789,1706373032883,-437.36684515,0.000335,2]
[312859790,1706373032895,-131.86315485,0.000335,2]
[312859791,1706373032904,-569.23,0.000335,2]
[312859792,1706373032913,-561.79803254,0.000335,2]
[312859793,1706373032932,-7.43196746,0.000335,2]
[312859794,1706373032941,-265.03168626,0.000335,2]
[312859795,1706373032952,-304.19831374,0.000335,2]
[312859796,1706373032962,-16.44079296,0.000335,2]
[312859797,1706373032975,-552.78920704,0.000335,2]
[312859798,1706373032984,-569.23,0.000335,2]
[312859799,1706373032993,-280.23084997,0.000335,2]
[312859800,1706373033005,-288.99915003,0.000335,2]
[312859801,1706373033014,-475.36846812,0.000335,2]
[312859802,1706373033026,-93.86153188,0.000335,2]
[312859803,1706373033035,-172.80950524,0.000335,2]
[312859804,1706373033050,-396.42049476,0.000335,2]
[312859805,1706373033059,-569.23,0.000335,2]
[312859806,1706373033068,-569.23,0.000335,2]
[312859807,1706373033078,-657.36,0.00033962,2]
[312859808,1706373033087,-559.59859175,0.00034,5]
[312859809,1706373033096,-446.59823114,0.00034105,2]
[312859810,1706373033105,-547.56,0.00034448,2]
[312859811,1706373033114,-250.0,0.00034609,111]
[312859812,1706373033124,-250.0,0.0003482,2]
[312859813,1706373033134,-800.0,0.00035,3]
[312859814,1706373033143,-2000.0,0.00035044,2]
[312859815,1706373033152,-551.86,0.00035069,2]
[312859816,1706373033162,-197.94,0.00035655,15]
[312859817,1706373033171,-575.76,0.00035766,2]
[312859818,1706373033181,-250.0,0.00035777,2]
[312859819,1706373033191,-205.0,0.00035791,21]
[312859820,1706373033201,-197.65,0.00035803,2]
[312859821,1706373033211,-151.94880006,0.00036005,2]
[312859822,1706373033220,-500.0,0.00036019,2]
[312859823,1706373033229,-168.52,0.00036028,2]
[312859824,1706373033238,-23900.0,0.00036033,2]
[312859825,1706373033247,-657.36,0.00036226,2]
[312859826,1706373033257,-424.24,0.00036278,2]
[312859827,1706373033277,-3512.95,0.000365,2]
[312859828,1706373033287,-551.86,0.00036713,2]
[312859829,1706373033297,-916.60175415,0.00036889,15]
[312859830,1706373033308,-1494.57478346,0.00036889,15]
[312859831,1706373033318,-150.85586616,0.00036897,2]
[312859832,1706373033328,-500.0,0.00036898,2]
[312859833,1706373033337,-150.0,0.00037,30]
[312859834,1706373033347,-850.0,0.00037,3]
[312859835,1706373033357,-1000.0,0.000372,7]
[312859836,1706373033367,-1498.23545695,0.00037341,2]
[312859837,1706373033376,-979.43084688,0.00037446,2]
[312859838,1706373033387,-1000.0,0.000375,7]
[312859839,1706373033397,-1498.23545695,0.00037698,2]
[312859840,1706373033406,-200.0,0.000377,13]
[312859841,1706373033416,-640.38505411,0.00037798,8]
[312859842,1706373033426,-151.08297639,0.00037798,8]
[312859843,1706373033435,-528.49105929,0.00037798,2]
[312859844,1706373033445,-2000.0,0.00037798,4]
[312859845,1706373033454,-154.45899139,0.00037799,2]
[312859846,1706373033464,-3393.90806942,0.00037799,11]
[312859847,1706373033473,-523.8010228,0.00037799,2]
[312859848,1706373033483,-500.0,0.000378,13]
[312859849,1706373033492,-872.88511416,0.00037867,2]
[312859850,1706373033502,-859.31928714,0.00037867,2]
[312859851,1706373033511,-480.23572844,0.00037867,2]
[312859852,1706373033520,-159.1,0.00037887,2]
[312859853,1706373033530,-155.00220419,0.00037894,4]
[312859854,1706373033540,-529.4248927,0.00037894,4]
[312859855,1706373033550,-5451.01098359,0.00037895,4]
[312859856,1706373033559,-502.11703257,0.00037895,4]
[312859857,1706373033568,-517.32648021,0.00037895,4]
[312859858,1706373033578,-3034.07105232,0.00037895,4]
[312859859,1706373033587,-868.30882633,0.00037895,2]
[312859860,1706373033596,-10568.54913855,0.00037895,4]
[312859861,1706373033606,-1854.94837168,0.00037895,4]
[312859862,1706373033616,-3148.81801246,0.00037895,4]
[312859863,1706373033627,-4252.75750706,0.00037895,2]
[312859864,1706373033637,-971.42888142,0.00037895,4]
[312859865,1706373033646,-941.84462436,0.00037896,4]
[312859866,1706373033656,-33804.76541887,0.00037896,4]
[312859867,1706373033666,-591.8475569,0.00037897,4]
[312859868,1706373033675,-65266.66677369,0.00037897,2]
[312859869,1706373033689,-18362.08082362,0.00037897,2]
[312859870,1706373033702,-628.42,0.00037897,2]
[312859871,1706373033714,-1974.8225,0.00037897,2]
[312859940,1706373038253,-151.94880007,0.00036005,2]
[312859942,1706373038263,-2458.45786977,0.00037887,10]
[312859944,1706373038316,-674.01213023,0.00037887,10]
[312859945,1706373038326,-2852.78423904,0.00037897,2]
[312859946,1706373038339,-4758.74190659,0.00037897,2]
[312859947,1706373038351,-917.09202498,0.00037897,2]
[312859948,1706373038369,-18791.59936436,0.00037897,2]
[312859949,1706373038423,-3704.77177377,0.00037897,2]
[312859950,1706373038435,-1343.29667571,0.00037897,2]
[312859951,1706373038479,-99987.3310969,0.00037897,2]
[312859952,1706373038491,-3779.24952656,0.00037897,2]
[312859953,1706373038537,-321568.9440609,0.00037897,2]
[312859954,1706373038549,-155.42410255,0.00037898,4]
[312859955,1706373038558,-265.27585597,0.00037898,4]
[312859956,1706373038568,-1001.21227934,0.00037898,4]
[312859957,1706373038578,-359.24718817,0.00037898,4]
[312859958,1706373038587,-2616.90790933,0.00037898,4]
[312859959,1706373038597,-437.31151923,0.00037898,2]
[312859960,1706373038607,-334.63799837,0.00037898,4]
[312859961,1706373038617,-172.46213306,0.00037898,4]
[312859962,1706373038626,-202.74253616,0.00037898,2]
[312859963,1706373038635,-680699.0344591,0.00037898,2]
[312859964,1706373038644,-300.02,0.00037899,2]
[312859965,1706373038653,-3302.58843747,0.00037899,2]
[312859966,1706373038662,-500.0,0.000379,2]
[312859967,1706373038670,-511.79739433,0.000379,4]
[312859968,1706373038680,-610.8682776,0.000379,4]
[312859969,1706373038689,-155.0,0.000379,4]
[312859970,1706373038698,-1321.68010043,0.000379,4]
[312859972,1706373038708,-306.42057278,0.000379,4]
[312859974,1706373038718,-356.53256981,0.000379,4]
[312859976,1706373038728,-1099.3215382,0.000379,4]
[312859978,1706373038737,-179.01291,0.000379,2]
[312859980,1706373038746,-700.0,0.000379,13]
[312859982,1706373038755,-674783.824501,0.000379,3]
[312859984,1706373038764,-5899.62465367,0.00037967,2]
[312859986,1706373038773,-150.0,0.0003797,2]
[312859988,1706373038782,-150.0,0.0003797,2]
[312859990,1706373038791,-767.16175879,0.00037987,4]
[312859992,1706373038801,-1885.41870573,0.00037987,4]
[312859994,1706373038810,-2347.46759022,0.00038,2]
[312859996,1706373038819,-1002.0,0.00038,6]
[312859998,1706373038828,-1498.23545695,0.00038089,2]
[312860000,1706373038837,-150.0,0.00038356,2]
[312860002,1706373038847,-551.86,0.00038357,2]
[312860004,1706373038856,-197.65,0.00038453,2]
[312860006,1706373038865,-657.36,0.0003849,2]
[312860008,1706373038874,-810.0,0.00038496,5]
[312860009,1706373038883,-159.94,0.000386,3]
[312860011,1706373038892,-159.94,0.000386,3]
[312860013,1706373038902,-800.0,0.00038633,8]
[312860014,1706373038911,-301.93188019,0.00038869,30]
[312860016,1706373038920,-7040.72567535,0.0003888,2]
[312860018,1706373038929,-3393.90806942,0.0003889,12]
[312860019,1706373038938,-82297.82257566,0.0003897,2]
[312860021,1706373038947,-282.4270994,0.0003898,2]
[312860023,1706373038956,-156.35510386,0.00038985,2]
[312860024,1706373038965,-1430.80823834,0.00039,2]
[312860026,1706373038974,-977.65031248,0.00039,4]
[312860028,1706373038983,-231.37037266,0.00039,7]
[312860029,1706373038992,-250.0,0.00039,2]
[312860031,1706373039001,-150.0,0.00039,2]
[312860033,1706373039010,-1000.0,0.00039,9]
[312860034,1706373039019,-151.26556239,0.00039102,2]
[312860036,1706373039028,-157.74,0.00039231,2]
[312860038,1706373039037,-592.87,0.0003926,2]
[312860039,1706373039046,-150.0,0.00039366,2]
[312860041,1706373039055,-1787.51,0.00039372,5]
[312860043,1706373039065,-197.94,0.00039391,15]
[312860045,1706373039074,-569.23,0.000394,3]
[312860046,1706373039084,-569.23,0.000394,3]
[312860048,1706373039093,-569.23,0.000394,3]
[312860050,1706373039103,-569.23,0.000394,3]
[312860052,1706373039112,-569.23,0.000394,3]
[312860053,1706373039122,-569.23,0.000394,3]
[312860055,1706373039131,-569.23,0.000394,3]
[312860057,1706373039142,-569.23,0.000394,3]
[312860058,1706373039151,-569.23,0.000394,3]
[312860060,1706373039161,-569.23,0.000394,3]
[312860062,1706373039170,-569.23,0.000394,3]
[312860063,1706373039180,-569.23,0.000394,3]
[312860065,1706373039190,-569.23,0.000394,3]
[312860067,1706373039199,-569.23,0.000394,3]
[312860069,1706373039209,-569.23,0.000394,3]
[312860071,1706373039218,-569.23,0.000394,3]
[312860072,1706373039233,-569.23,0.000394,3]
[312860074,1706373039243,-569.23,0.000394,3]
[312860076,1706373039253,-569.23,0.000394,3]
[312860078,1706373039262,-569.23,0.000394,3]
[312860079,1706373039271,-154.45899139,0.00039421,4]
[312860081,1706373039281,-7040.72567535,0.00039476,2]
[312860083,1706373039291,-640.38505409,0.00039513,9]
[312860085,1706373039300,-230.08829952,0.00039548,2]
[312860086,1706373039309,-494.02868803,0.00039588,4]
[312860088,1706373039323,-150.0,0.00039656,2]
[312860090,1706373039332,-158.63960179,0.00039786,4]
[312860092,1706373039341,-151.08297633,0.00039798,9]
[312860094,1706373039350,-313.52241438,0.00039853,30]
[312860096,1706373039360,-91522.10484018,0.00039865,2]
[312860097,1706373039370,-100030.14448329,0.000399,2]
[312860099,1706373039379,-1000.0,0.000399,14]
[312860101,1706373039388,-150.0,0.00039932,2]
[312860103,1706373039401,-528.49105929,0.00039941,5]
[312860105,1706373039411,-3393.90806942,0.00039981,13]
[312860116,1706373039535,-310.02128018,0.00039984,4]
[312860118,1706373039545,-8876.96389957,0.00039984,4]
[312860120,1706373039554,-7203.18079498,0.00039984,4]
[312860122,1706373039563,-155.17807555,0.00039984,4]
[312860124,1706373039572,-200.41278102,0.00039984,4]
[312860125,1706373039582,-1839.11,0.00039985,5]
[312860127,1706373039591,-155.0,0.00039986,4]
[312860129,1706373039601,-256.56027218,0.00039986,4]
[312860131,1706373039610,-155.77916704,0.00039986,4]
[312860133,1706373039620,-631.79683257,0.00039986,4]
[312860134,1706373039630,-625.59230721,0.00039986,4]
[312860136,1706373039638,-329.74474297,0.00039986,4]
[312860138,1706373039648,-2207.53821296,0.00039986,4]
[312860140,1706373039657,-187.20216054,0.00039986,4]
[312860141,1706373039666,-198.9265211,0.00039986,4]
[312860143,1706373039675,-162.79971233,0.00039986,4]
[312860145,1706373039684,-980.56244468,0.00039986,4]
[312860147,1706373039693,-507.31895461,0.00039986,4]
[312860149,1706373039702,-190.82303334,0.00039986,4]
[312860151,1706373039711,-2624.88799229,0.00039986,4]
[312860152,1706373039720,-43299.13063349,0.00039986,4]
[312860153,1706373039729,-353.39032026,0.00039986,4]
[312860154,1706373039739,-3160.02558602,0.00039986,5]
[312860155,1706373039748,-350.00006257,0.00039986,4]
[312860156,1706373039758,-19030.15880066,0.00039986,4]
[312860157,1706373039767,-2184.51565051,0.00039986,4]
[312860158,1706373039776,-150.0,0.00039986,2]
[312860159,1706373039786,-150.0,0.00039986,2]
[312860160,1706373039795,-361.90503468,0.00039987,4]
[312860161,1706373039805,-40678.2052449,0.00039987,4]
[312860162,1706373039815,-1354.23429021,0.0003999,2]
[312860163,1706373039824,-208.0607197,0.0003999,90]
[312860165,1706373039833,-20709.72474754,0.0003999,4]
[312860166,1706373039842,-307.66241652,0.0003999,4]
[312860168,1706373039851,-1034.28572866,0.0003999,4]
[312860170,1706373039860,-209.47076904,0.0003999,4]
[312860172,1706373039870,-1992.0616835,0.00039992,2]
[312860174,1706373039879,-468.14271149,0.00039995,4]
[312860176,1706373039888,-226.11786442,0.00039998,4]
[312860178,1706373039897,-156.92924089,0.00039998,4]
[312860180,1706373039907,-357.10627292,0.00039998,2]
[312860182,1706373039916,-524.31366153,0.00039998,4]
[312860184,1706373039926,-422.96048099,0.00039998,4]
[312860186,1706373039935,-214.25314506,0.00039998,4]
[312860188,1706373039944,-301.91289594,0.00039998,2]
[312860190,1706373039954,-155.32990661,0.00039998,2]
[312860193,1706373039963,-155.0,0.00039998,4]
[312860195,1706373039972,-218.18270859,0.00039998,4]
[312860197,1706373039982,-308.21443755,0.00039998,30]
[312860199,1706373039991,-319.02655035,0.00039998,30]
[312860200,1706373040000,-2619.74608901,0.00039999,2]
[312860203,1706373040009,-941.78794294,0.00039999,4]
[312860204,1706373040018,-295.78388584,0.00039999,4]
[312860207,1706373040027,-308.21443755,0.00039999,30]
[312860209,1706373040037,-319.02655035,0.00039999,30]
[312860210,1706373040045,-313.52241438,0.00039999,30]
[312860213,1706373040056,-301.93188019,0.00039999,30]
[312860214,1706373040065,-14448.9984573,0.0004,7]
[312860216,1706373040074,-424749.39588572,0.0004,7]
[312860218,1706373040082,-800.00863621,0.0004,60]
[312860221,1706373040093,-959.02781888,0.0004,2]
[312860222,1706373040103,-219.91989013,0.0004,2]
[312860224,1706373040112,-33835.47696146,0.0004,4]
[312860227,1706373040122,-155.56381426,0.0004,3]
[312860228,1706373040131,-476.22825969,0.0004,4]
[312860230,1706373040140,-161.1102379,0.0004,30]
[312860232,1706373040150,-3000.0,0.0004,2]
[312860234,1706373040158,-1205.08915547,0.0004,4]
[312860236,1706373040167,-210.37418137,0.0004,4]
[312860239,1706373040177,-1726.19638412,0.0004,4]
[312860241,1706373040185,-673.60121413,0.0004,4]
[312860243,1706373040195,-554.29335016,0.0004,2]
[312860244,1706373040204,-173.11255329,0.0004,4]
[312860246,1706373040213,-25828.59,0.0004,7]
[312860248,1706373040235,-2250.0,0.0004,2]
[312860251,1706373040244,-631.966831,0.0004,120]
[312860253,1706373040253,-17154.25,0.0004,7]
[312860255,1706373040262,-49399.74,0.0004,7]
[312860257,1706373040271,-551.86,0.00040001,2]
[312860259,1706373040280,-3575.7573696,0.00040014,2]
[312860261,1706373040289,-6631.7793803,0.00040041,2]
[312860263,1706373040298,-253.668,0.00040068,2]
[312860265,1706373040307,-499.673,0.00040068,2]
[312860267,1706373040319,-999.0,0.00040068,2]
[312860269,1706373040328,-427.0,0.00040068,2]
[312860271,1706373040337,-319.0,0.00040068,2]
[312860273,1706373040345,-252.942,0.00040068,2]
[312860274,1706373040354,-1138.0,0.00040068,2]
[312860276,1706373040363,-866.0,0.00040068,2]
[312860279,1706373040373,-3952.402,0.00040068,2]
[312860280,1706373040383,-833.393,0.00040068,2]
[312860283,1706373040393,-19709.0,0.00040068,2]
[312860285,1706373040405,-2278.0,0.00040068,2]
[312860286,1706373040416,-368.0,0.00040068,2]
[312860288,1706373040425,-364.676,0.00040068,2]
[312860291,1706373040435,-658.212,0.00040068,2]
[312860293,1706373040446,-837.0,0.00040068,2]
[312860295,1706373040455,-481.55,0.00040068,2]
[312860297,1706373040465,-905.515,0.00040068,2]
[312860299,1706373040474,-1031.0,0.00040068,2]
[312860300,1706373040483,-215.0,0.00040068,2]
[312860302,1706373040493,-1252.0,0.00040068,2]
[312860305,1706373040502,-575.76,0.00040237,2]
[312860306,1706373040513,-150.0,0.00040375,2]
[312860309,1706373040523,-335.0,0.0004068,2]
[312860310,1706373040533,-151.10829198,0.0004071,2]
[312860313,1706373040543,-592.87,0.00040733,2]
[312860315,1706373040552,-657.36,0.00040754,2]
[312860317,1706373040562,-424.24,0.00040813,2]
[312860319,1706373040572,-191.97658312,0.00040854,2]
[312860320,1706373040580,-151.497,0.00040959,30]
[312860323,1706373040591,-12939.90897287,0.00041,7]
[312860325,1706373040602,-3474.85286663,0.00041,4]
[312860326,1706373040612,-800.0,0.00041,2]
[312860329,1706373040621,-150.77,0.00041,2]
[312860331,1706373040630,-150.77,0.00041,2]
[312860332,1706373040640,-150.77,0.00041,2]
[312860335,1706373040650,-150.77,0.00041,2]
[312860336,1706373040658,-150.77,0.00041,2]
[312860338,1706373040667,-150.77,0.00041,2]
[312860340,1706373040676,-150.77,0.00041,2]
[312860342,1706373040685,-150.77,0.00041,2]
[312860344,1706373040694,-150.77,0.00041,2]
[312860346,1706373040703,-150.77,0.00041,2]
[312860348,1706373040712,-150.77,0.00041,2]
[312860351,1706373040722,-150.77,0.00041,2]
[312860353,1706373040732,-150.77,0.00041,2]
[312860356,1706373040741,-150.77,0.00041,2]
[312860357,1706373040751,-150.77,0.00041,2]
[312860360,1706373040762,-150.77,0.00041,2]
[312860361,1706373040771,-150.77,0.00041,2]
[312860363,1706373040780,-150.77,0.00041,2]
[312860365,1706373040789,-150.77,0.00041,2]
[312860367,1706373040798,-150.77,0.00041,2]
[312860369,1706373040807,-150.77,0.00041,2]